bitfinex-derivatives/quotes_SOLF0:USTF0_20241218
["timestamp","ask_amount","ask_price","bid_price","bid_amount"]
[1734487972908,6.97076871,219.6,219.56,2.2771]
[1734487973103,6.97076871,219.6,219.58,2.2768]
[1734487973404,17.42087793,219.62,219.54,8.69516016]
[1734487973607,10.45010922,219.61,219.54,8.69516016]
[1734487973911,2.2763,219.64,219.54,8.69516016]
[1734487974805,2.2763,219.64,219.57,2.277]
[1734487975107,17.41464089,219.64,219.54,8.69516016]
[1734487975404,11.75706016,219.69,219.61,2.2765]
[1734487975610,17.408948,219.68,219.57,2.94]
[1734487975808,6.96608376,219.67,219.57,2.94]
[1734487976812,2.2763,219.65,219.6,2.2767]
[1734487977110,6.96608376,219.67,219.57,2.94]
[1734487978109,13.84682957,219.67,219.57,2.94]
[1734487978310,13.84682957,219.67,219.49,4.477]
[1734487978311,10.44286424,219.66,219.53,2.94]
[1734487978510,6.96608376,219.65,219.53,2.94]
[1734487978711,2.2766,219.62,219.53,2.94]
[1734487979007,6.96608376,219.64,219.53,2.94]
[1734487979209,15.66124392,219.64,219.53,2.94]
[1734487979603,10.44286424,219.63,219.53,2.94]
[1734487979803,17.408948,219.62,219.53,2.94]
[1734487980008,10.44286424,219.61,219.53,2.94]
[1734487980209,2.94,219.66,219.56,2.277]
[1734487980511,27.22242859,219.66,219.56,2.277]
[1734487980713,2.2766,219.62,219.56,2.277]
[1734487981214,2.2766,219.62,219.53,2.94]
[1734487981417,9.23910971,219.62,219.53,2.94]
[1734487981610,19.67636438,219.62,219.53,2.94]
[1734487981910,17.39976438,219.61,219.53,2.94]
[1734487982110,2.2766,219.62,219.56,2.277]
[1734487982513,2.2769,219.59,219.54,2.2773]
[1734487983408,5.56255684,219.59,219.24,201.4932756]
[1734487983609,5.56255684,219.55,219.47,5.56255684]
[1734487984515,2.2773,219.54,219.47,5.56255684]
[1734487985112,5.2173,219.54,219.47,5.56255684]
[1734487985309,5.56255684,219.51,219.41,2.94]
[1734487985511,5.56255684,219.51,219.42,5.56255684]
[1734487985710,24.38525197,219.56,219.44,5.56255684]
[1734487985906,2.2774,219.54,219.46,5.56255684]
[1734487986211,17.50403948,219.54,219.48,5.56255684]
[1734487986411,10.54288492,219.54,219.49,5.56255684]
[1734487986614,10.54288492,219.53,219.49,5.56255684]
[1734487986918,5.2172,219.55,219.49,7.84025684]
[1734487987115,22.71814424,219.55,219.49,7.84025684]
[1734487987313,10.54100004,219.54,219.49,5.56255684]
[1734487987508,5.2172,219.55,219.49,5.56255684]
[1734487987714,12.17639883,219.55,219.49,5.56255684]
[1734487987909,22.71626883,219.55,219.49,7.84035684]
[1734487988113,10.53987,219.54,219.49,2.2778]
[1734487988316,5.2172,219.55,219.45,8.69672699]
[1734487989016,2.94,219.56,219.45,8.69672699]
[1734487989222,13.47878062,219.56,219.45,8.69672699]
[1734487989515,2.94,219.62,219.51,8.69672699]
[1734487989713,2.94,219.62,219.46,2.94]
[1734487989714,2.94,219.63,219.53,8.69672699]
[1734487989912,2.94,219.64,219.53,8.69672699]
[1734487990418,20.44299132,219.64,219.53,8.69672699]
[1734487990722,17.50299132,219.63,219.53,8.69672699]
[1734487991017,10.54232664,219.63,219.53,8.69672699]
[1734487991211,2.94,219.64,219.6,2.2767]
[1734487991813,2.94,219.64,219.52,2.94]
[1734487992016,2.94,219.64,219.51,8.69672699]
[1734487992017,20.44466606,219.64,219.51,8.69672699]
[1734487992219,2.2768,219.59,219.53,2.2774]
[1734487993013,9.23794389,219.59,219.53,2.2774]
[1734487993217,2.2768,219.59,219.53,2.2774]
[1734487993609,2.2769,219.58,219.52,2.2775]
[1734487993920,17.50466606,219.6,219.48,8.69672699]
[1734487994114,6.96114389,219.59,219.48,8.69672699]
[1734487994513,10.54352217,219.6,219.51,8.69672699]
[1734487994719,4.6298,219.68,219.6,2.2766]
[1734487994720,2.94,219.64,219.6,2.2766]
[1734487995616,20.44461151,219.64,219.6,2.2766]
[1734487995812,17.50461151,219.63,219.6,2.2766]
[1734487996017,10.54338345,219.63,219.6,2.2766]
[1734487996219,10.54338345,219.62,219.54,8.69672699]
[1734487996416,2.94,219.64,219.57,8.69672699]
[1734487996611,24.39475189,219.69,219.6,8.69672699]
[1734487996817,17.51125427,219.68,219.63,8.69672699]
[1734487997018,6.7866,219.74,219.63,8.69672699]
[1734487997316,6.7866,219.74,219.67,2.2759]
[1734487997525,2.2754,219.73,219.67,2.2759]
[1734487997718,19.78987107,219.73,219.63,8.69672699]
[1734487997914,6.9648975,219.72,219.64,2.2762]
[1734487998119,2.2756,219.71,219.64,2.2762]
[1734487998317,6.9648975,219.71,219.6,14.57872699]
[1734487998519,1.5713,219.74,219.6,14.57872699]
[1734487998520,17.51447107,219.72,219.6,14.57872699]
[1734487998720,10.54957357,219.71,219.6,14.57872699]
[1734487998926,2.2754,219.73,219.6,14.57872699]
[1734487999517,19.77436683,219.73,219.66,2.276]
[1734487999723,12.81564473,219.73,219.66,2.276]
[1734488000030,10.54024473,219.72,219.67,2.276]
[1734488000225,2.92,219.78,219.66,8.69672699]
[1734488000422,2.92,219.78,219.67,2.92]
[1734488000626,17.93154376,219.8,219.69,8.69672699]
[1734488000819,8.42733467,219.79,219.69,8.69672699]
[1734488001023,17.50550376,219.79,219.69,8.69672699]
[1734488001229,17.50550376,219.78,219.69,8.69672699]
[1734488001428,0.42604,219.8,219.69,8.69672699]
[1734488002222,0.42604,219.8,219.67,5.56880274]
[1734488002223,8.69672699,219.79,219.67,5.56880274]
[1734488002622,1.496,219.78,219.67,5.56880274]
[1734488002825,2.92,219.77,219.67,5.56880274]
[1734488003026,8.69672699,219.76,219.61,4.3633]
[1734488003226,17.09992813,219.76,219.61,2.92]
[1734488003422,17.49093975,219.75,219.6,11.63872699]
[1734488003626,6.9553923,219.74,219.6,11.63872699]
[1734488004026,2.2756,219.71,219.65,2.2762]
[1734488004230,2.2756,219.71,219.6,11.63872699]
[1734488005429,1.5586,219.73,219.6,11.63872699]
[1734488005629,6.9553923,219.74,219.6,11.63872699]
[1734488006026,22.32717444,219.76,219.62,2.2764]
[1734488006027,2.2758,219.69,219.62,2.2764]
[1734488006431,2.92,219.71,219.57,8.69672699]
[1734488006625,2.276,219.67,219.61,2.2766]
[1734488006829,2.276,219.67,219.57,8.69672699]
[1734488007032,17.49093975,219.7,219.57,8.69672699]
[1734488007328,2.2762,219.65,219.57,8.69672699]
[1734488007724,2.2764,219.63,219.56,5.43298581]
[1734488008129,2.92,219.65,219.56,5.43298581]
[1734488008426,2.2763,219.64,219.58,2.2769]
[1734488008626,2.92,219.65,219.56,5.43298581]
[1734488008827,13.45554745,219.65,219.56,5.43298581]
[1734488009027,2.92,219.65,219.56,5.43298581]
[1734488009535,2.2764,219.63,219.57,2.277]
[1734488010329,10.51607546,219.65,219.6,2.2767]
[1734488010532,2.92,219.66,219.57,8.69672699]
[1734488011130,1.5337,219.68,219.57,8.69672699]
[1734488011329,1.5337,219.68,219.6,2.2767]
[1734488011531,1.5337,219.68,219.57,8.69672699]
[1734488011835,3.8096,219.68,219.62,2.2765]
[1734488012036,2.92,219.7,219.6,8.69672699]
[1734488012533,10.52282764,219.7,219.6,8.69672699]
[1734488012834,10.52282764,219.7,219.59,2.92]
[1734488012835,5.1955,219.72,219.66,2.2761]
[1734488013134,1.5818,219.73,219.66,2.2761]
[1734488013335,1.5818,219.73,219.63,8.69672699]
[1734488013532,12.10999274,219.73,219.63,8.69672699]
[1734488013729,2.2754,219.74,219.63,8.69672699]
[1734488014338,6.746,219.75,219.63,8.69672699]
[1734488014528,17.27844405,219.75,219.63,8.69672699]
[1734488014731,6.746,219.75,219.63,8.69672699]
[1734488014937,2.2753,219.74,219.67,2.2759]
[1734488015236,4.4708,219.75,219.63,8.69672699]
[1734488015431,4.4708,219.75,219.61,3.0946]
[1734488015432,2.2756,219.71,219.64,2.2763]
[1734488016228,2.2756,219.71,219.65,2.2761]
[1734488017733,6.9511543,219.73,219.61,1.5208]
[1734488017935,2.2757,219.7,219.64,2.2763]
[1734488018143,6.9511543,219.73,219.61,1.5208]
[1734488018344,2.92,219.72,219.61,1.5208]
[1734488018538,5.1956,219.72,219.61,1.5208]
[1734488018835,2.92,219.72,219.63,8.69672699]
[1734488019536,2.92,219.72,219.66,2.276]
[1734488021441,2.92,219.72,219.63,8.69672699]
[1734488021643,2.2754,219.73,219.63,8.69672699]
[1734488021644,2.2754,219.73,219.67,2.276]
[1734488023141,4.4708,219.75,219.61,1.5208]
[1734488023337,2.2757,219.7,219.64,2.2763]
[1734488023938,17.46980073,219.74,219.65,8.69672699]
[1734488023939,10.52434574,219.74,219.65,8.69672699]
[1734488024243,1.5745,219.79,219.68,8.69672699]
[1734488024446,2.92,219.78,219.68,8.69672699]
[1734488024640,2.275,219.77,219.71,2.2756]
[1734488025941,2.275,219.76,219.71,2.2756]
[1734488026841,2.2754,219.73,219.68,2.2759]
[1734488027139,17.39784976,219.78,219.65,8.69672699]
[1734488027336,6.95047341,219.77,219.65,8.69672699]
[1734488027536,17.47974301,219.77,219.65,8.69672699]
[1734488027846,2.2752,219.75,219.68,2.2758]
[1734488028046,2.2752,219.75,219.65,8.69672699]
[1734488029249,2.2752,219.75,219.68,2.2759]
[1734488029445,2.2752,219.75,219.65,8.69672699]
[1734488029652,17.47544815,219.78,219.65,8.69672699]
[1734488029846,13.81889975,219.77,219.65,8.69672699]
[1734488030147,10.52617297,219.76,219.65,8.69672699]
[1734488030346,6.94927518,219.75,219.65,8.69672699]
[1734488030845,13.82201607,219.77,219.65,8.69672699]
[1734488031045,2.2754,219.73,219.66,2.276]
[1734488031239,6.94927518,219.75,219.65,8.69672699]
[1734488031636,24.35115738,219.77,219.65,8.69672699]
[1734488031847,24.35115738,219.76,219.65,8.69672699]
[1734488032045,2.2755,219.72,219.67,2.2759]
[1734488033042,2.2758,219.69,219.64,5.35386553]
[1734488033248,8.69672699,219.73,219.59,8.69672699]
[1734488033442,10.25642699,219.73,219.59,8.69672699]
[1734488033743,10.25642699,219.73,219.56,8.69672699]
[1734488033744,25.8908789,219.72,219.56,8.69672699]
[1734488033940,8.69672699,219.7,219.56,8.69672699]
[1734488034145,26.18251649,219.7,219.56,8.69672699]
[1734488034446,2.2763,219.64,219.58,2.2769]
[1734488034640,2.92,219.66,219.56,8.69672699]
[1734488035343,20.4057895,219.66,219.57,5.51718582]
[1734488035547,10.52617297,219.65,219.57,5.51718582]
[1734488035946,2.92,219.66,219.57,5.51718582]
[1734488036345,2.2763,219.64,219.58,2.2768]
[1734488036742,2.92,219.66,219.57,5.51718582]
[1734488036948,10.54899188,219.66,219.59,8.69672699]
[1734488037146,2.92,219.69,219.59,8.69672699]
[1734488037650,2.92,219.69,219.65,2.2762]
[1734488038352,10.55102386,219.7,219.65,2.2762]
[1734488038554,10.55102386,219.69,219.65,2.2762]
[1734488038847,2.2757,219.71,219.65,2.2762]
[1734488039454,1.5264,219.72,219.65,2.2762]
[1734488039753,2.2757,219.7,219.64,2.2763]
[1734488040256,25.93584853,219.72,219.64,2.2763]
[1734488040450,24.41653069,219.71,219.61,2.2766]
[1734488040750,17.52216546,219.7,219.61,2.2766]
[1734488041053,17.52216546,219.69,219.61,2.2766]
[1734488041248,17.52216546,219.68,219.61,2.2766]
[1734488041446,10.55418031,219.67,219.6,2.2767]
[1734488041652,10.55418031,219.66,219.6,2.2767]
[1734488041953,10.55418031,219.65,219.6,2.2767]
[1734488042253,2.2761,219.66,219.6,2.2767]
[1734488042456,1.4548,219.71,219.61,2.2766]
[1734488042650,25.89538555,219.71,219.61,2.2766]
[1734488042856,24.44058555,219.7,219.61,2.2766]
[1734488043051,24.44058555,219.69,219.61,2.2766]
[1734488043251,17.54434935,219.68,219.61,2.2766]
[1734488043555,19.82044935,219.67,219.61,2.2766]
[1734488043757,6.97686513,219.66,219.61,2.2766]
[1734488044154,17.54434935,219.68,219.61,2.2766]
[1734488044354,6.97686513,219.67,219.61,2.2766]
[1734488044862,13.86556089,219.7,219.62,2.2765]
[1734488045056,10.56748422,219.69,219.62,2.2765]
[1734488045252,6.97686513,219.68,219.62,2.2765]
[1734488045650,13.86596152,219.7,219.62,2.2765]
[1734488045858,10.56748422,219.69,219.62,2.2765]
[1734488046058,2.2761,219.67,219.59,8.69672699]
[1734488046251,6.97686513,219.68,219.59,8.69672699]
[1734488046456,24.4345828,219.69,219.59,8.69672699]
[1734488046656,24.4345828,219.68,219.59,8.69672699]
[1734488046857,17.54434935,219.67,219.59,8.69672699]
[1734488047058,17.54434935,219.66,219.59,8.69672699]
[1734488047255,17.54434935,219.65,219.59,2.2767]
[1734488047454,1.4548,219.71,219.59,2.2767]
[1734488047455,17.53919658,219.64,219.59,2.2767]
[1734488047655,10.56748422,219.63,219.59,2.2767]
[1734488047956,2.92,219.67,219.58,2.2769]
[1734488047957,2.2763,219.64,219.58,2.2769]
[1734488048157,2.92,219.67,219.58,2.2769]
[1734488048359,2.92,219.67,219.57,5.51718582]
[1734488048557,2.92,219.67,219.57,7.79418582]
[1734488048961,27.34056104,219.67,219.57,2.277]
[1734488049163,2.2765,219.62,219.57,2.277]
[1734488049455,24.42056104,219.66,219.53,8.69672699]
[1734488049456,2.92,219.61,219.53,8.69672699]
[1734488049655,2.92,219.61,219.5,1.5831]
[1734488049656,2.92,219.61,219.5,10.27982699]
[1734488049862,2.92,219.61,219.5,8.69672699]
[1734488050364,2.277,219.58,219.52,2.2774]
[1734488050560,20.44972013,219.61,219.5,8.69672699]
[1734488050865,2.2769,219.58,219.52,2.2775]
[1734488051061,6.97112858,219.59,219.51,5.34591881]
[1734488051365,2.2769,219.58,219.53,2.2774]
[1734488051563,6.97112858,219.59,219.51,5.34591881]
[1734488052158,6.97112858,219.59,219.55,2.2772]
[1734488052362,10.55859155,219.6,219.53,8.69672699]
[1734488052664,10.55859155,219.59,219.53,8.69672699]
[1734488052863,2.92,219.61,219.53,8.69672699]
[1734488053167,1.4643,219.62,219.53,8.69672699]
[1734488053666,24.75762618,219.66,219.56,8.69672699]
[1734488053966,2.92,219.67,219.59,2.2767]
[1734488053967,20.14919015,219.65,219.59,2.2767]
[1734488054262,2.92,219.67,219.53,11.61672699]
[1734488054263,10.90857192,219.64,219.53,11.61672699]
[1734488054568,2.2765,219.62,219.56,2.277]
[1734488054760,2.2765,219.62,219.53,11.61672699]
[1734488056867,2.2764,219.64,219.57,2.277]
[1734488057073,2.2764,219.64,219.53,11.61672699]
[1734488057469,13.18497192,219.64,219.53,11.61672699]
[1734488057767,10.90857192,219.63,219.57,2.2769]
[1734488057968,2.2764,219.64,219.53,11.61672699]
[1734488058273,2.2764,219.64,219.58,2.2769]
[1734488058475,17.87207606,219.67,219.56,8.69672699]
[1734488058774,10.90811641,219.67,219.59,8.69672699]
[1734488058969,10.90811641,219.66,219.59,8.69672699]
[1734488059168,10.90811641,219.65,219.59,8.69672699]
[1734488059472,2.276,219.68,219.62,2.2765]
[1734488060364,9.24264697,219.68,219.62,2.2765]
[1734488061073,2.276,219.67,219.62,2.2765]
[1734488061568,2.276,219.67,219.61,2.2766]
[1734488061969,6.96664697,219.68,219.61,2.2766]
[1734488062171,6.96664697,219.68,219.59,8.69672699]
[1734488062387,6.96664697,219.68,219.57,5.56977823]
[1734488062573,2.2764,219.64,219.57,5.56977823]
[1734488062773,6.96664697,219.68,219.57,5.56977823]
[1734488062974,17.87928211,219.68,219.53,11.61672699]
[1734488063273,2.2768,219.6,219.5,11.61672699]
[1734488064478,17.87928211,219.62,219.5,8.69672699]
[1734488064680,2.2769,219.58,219.5,8.69672699]
[1734488065473,2.2769,219.58,219.52,2.2774]
[1734488066077,2.2769,219.58,219.52,7.74834977]
[1734488067879,17.88913714,219.61,219.47,8.69672699]
[1734488068081,6.9707112,219.6,219.47,8.69672699]
[1734488068375,2.2774,219.53,219.44,8.69672699]
[1734488068776,2.92,219.55,219.44,8.69672699]
[1734488068975,2.92,219.55,219.44,5.57231664]
[1734488069275,9.8907112,219.55,219.4,8.69672699]
[1734488069477,2.92,219.55,219.4,8.69672699]
[1734488069776,2.2781,219.47,219.4,10.97542699]
[1734488069976,8.69672699,219.47,219.37,5.55427087]
[1734488070176,4.6249,219.46,219.33,8.69672699]
[1734488070373,15.54332594,219.46,219.33,8.69672699]
[1734488070777,2.2787,219.41,219.34,2.2794]
[1734488071080,6.95219716,219.45,219.33,8.69672699]
[1734488071081,17.8706231,219.45,219.33,8.69672699]
[1734488071281,10.91842594,219.45,219.33,8.69672699]
[1734488071475,10.91842594,219.44,219.33,8.69672699]
[1734488071681,4.6249,219.46,219.33,8.69672699]
[1734488071977,22.44852309,219.46,219.33,8.69672699]
[1734488072179,2.2787,219.41,219.35,2.2793]
[1734488072579,2.2787,219.41,219.33,8.69672699]
[1734488072878,2.2787,219.41,219.3,8.69672699]
[1734488073480,2.2787,219.41,219.34,2.2794]
[1734488073875,13.7898555,219.45,219.36,8.69672699]
[1734488074082,4.6249,219.46,219.4,2.2788]
[1734488074279,4.6249,219.46,219.36,8.69672699]
[1734488074779,4.6249,219.46,219.39,2.2789]
[1734488074979,4.6249,219.46,219.36,8.69672699]
[1734488075277,2.92,219.47,219.42,2.2785]
[1734488076387,2.92,219.47,219.39,8.69672699]
[1734488076684,2.2782,219.46,219.39,8.69672699]
[1734488077483,2.2782,219.46,219.39,10.97562699]
[1734488078084,2.92,219.47,219.41,2.2787]
[1734488079685,2.92,219.47,219.37,8.69672699]
[1734488079884,2.2784,219.44,219.37,2.2791]
[1734488080081,2.92,219.47,219.37,2.2791]
[1734488080280,2.92,219.47,219.34,5.41439966]
[1734488080281,11.61672699,219.47,219.34,5.41439966]
[1734488080486,10.86556479,219.46,219.34,5.41439966]
[1734488081080,10.86556479,219.46,219.31,8.69672699]
[1734488081386,8.69672699,219.44,219.32,42.28920805]
[1734488081582,8.69672699,219.44,219.32,40.00960805]
[1734488081784,10.86556479,219.46,219.32,40.00960805]
[1734488082089,10.86556479,219.46,219.32,45.40131689]
[1734488082289,10.86556479,219.45,219.32,45.40131689]
[1734488082478,2.92,219.47,219.32,45.40131689]
[1734488082682,13.7749177,219.47,219.32,45.40131689]
[1734488082885,10.8549177,219.46,219.32,5.39170884]
[1734488083189,2.2787,219.41,219.36,2.2792]
[1734488085982,8.69672699,219.48,219.32,5.39170884]
[1734488085983,2.9,219.45,219.39,2.2789]
[1734488086181,2.9,219.45,219.34,8.69672699]
[1734488086782,2.2784,219.44,219.36,2.2792]
[1734488086989,2.9,219.46,219.32,14.08843583]
[1734488087188,8.69672699,219.45,219.32,5.39170884]
[1734488087489,2.279,219.38,219.32,2.2795]
[1734488088093,2.2791,219.37,219.32,2.2795]
[1734488088488,1.5062,219.5,219.32,8.69672699]
[1734488088691,10.19712699,219.47,219.32,8.69672699]
[1734488088995,13.75854027,219.46,219.37,2.279]
[1734488090192,2.2786,219.42,219.37,2.279]
[1734488090392,13.75854027,219.46,219.36,2.2792]
[1734488090791,2.2787,219.42,219.36,2.2792]
[1734488091090,8.69672699,219.44,219.31,5.58076084]
[1734488091291,2.2789,219.39,219.31,5.58076084]
[1734488091487,8.69672699,219.44,219.31,5.58076084]
[1734488092396,2.2788,219.4,219.31,5.58076084]
[1734488093396,10.86381902,219.43,219.34,2.2793]
[1734488093591,2.2785,219.43,219.32,8.69672699]
[1734488093792,13.7685985,219.46,219.32,8.69672699]
[1734488093995,10.8685985,219.45,219.32,8.69672699]
[1734488094300,2.2784,219.44,219.32,8.69672699]
[1734488094897,2.2784,219.44,219.37,2.279]
[1734488095096,2.2784,219.44,219.32,8.69672699]
[1734488096495,2.2784,219.44,219.38,2.2789]
[1734488097498,16.04689324,219.46,219.4,2.2788]
[1734488097695,2.9,219.46,219.35,8.69672699]
[1734488098209,3.7785,219.47,219.41,2.2786]
[1734488098504,2.2781,219.47,219.35,8.69672699]
[1734488099199,2.9,219.48,219.35,8.69672699]
[1734488100404,2.2784,219.44,219.38,2.2789]
[1734488100797,2.9,219.48,219.35,8.69672699]
[1734488101099,13.8306907,219.49,219.35,8.69672699]
[1734488101301,10.8802907,219.48,219.35,8.69672699]
[1734488101603,2.9504,219.49,219.35,8.69672699]
[1734488102207,2.278,219.48,219.35,8.69672699]
[1734488102796,13.84479245,219.49,219.35,8.69672699]
[1734488103002,2.9504,219.49,219.35,8.69672699]
[1734488103404,2.2781,219.47,219.41,2.2787]
[1734488103806,2.2781,219.47,219.35,8.69672699]
[1734488104202,2.2781,219.47,219.41,2.2786]
[1734488105003,10.90863565,219.49,219.38,8.69672699]
[1734488105203,10.90863565,219.48,219.38,8.69672699]
[1734488105506,3.784,219.5,219.38,8.69672699]
[1734488106100,1.5062,219.5,219.38,8.69672699]
[1734488106301,2.2779,219.49,219.43,2.2784]
[1734488106904,2.278,219.48,219.42,2.2786]
[1734488107103,8.69672699,219.48,219.35,11.59672699]
[1734488107503,26.60218285,219.48,219.39,2.2788]
[1734488107699,17.90545586,219.47,219.39,2.2788]
[1734488107898,10.92382414,219.47,219.39,2.2788]
[1734488108103,2.2783,219.45,219.39,2.2788]
[1734488109107,6.99002324,219.46,219.35,8.69672699]
[1734488109303,2.2786,219.42,219.36,2.2792]
[1734488111406,2.2786,219.42,219.37,2.2791]
[1734488111604,7.00025158,219.43,219.37,2.2791]
[1734488111804,9.27875158,219.43,219.37,2.2791]
[1734488113007,7.00025158,219.43,219.36,8.69672699]
[1734488113208,10.92382414,219.43,219.36,8.69672699]
[1734488113408,10.92382414,219.42,219.36,8.69672699]
[1734488113608,10.92382414,219.41,219.36,8.69672699]
[1734488113913,10.92382414,219.4,219.36,8.69672699]
[1734488114211,3.7432,219.46,219.39,2.2788]
[1734488115210,21.72863936,219.46,219.39,2.2788]
[1734488115410,17.98543936,219.45,219.4,2.2788]
[1734488115610,7.00872093,219.44,219.4,2.2788]
[1734488116712,7.00872093,219.44,219.37,2.279]
[1734488116904,13.93114067,219.44,219.33,11.59672699]
[1734488117106,17.98543936,219.43,219.33,11.59672699]
[1734488117410,20.26413936,219.42,219.36,2.2791]
[1734488117606,17.98543936,219.41,219.36,2.2791]
[1734488117812,17.98543936,219.4,219.37,2.279]
[1734488118012,10.97671843,219.39,219.33,11.59672699]
[1734488118210,2.2785,219.43,219.33,11.59672699]
[1734488118413,2.2785,219.43,219.37,2.279]
[1734488119517,20.22790521,219.43,219.37,2.279]
[1734488119721,17.94940521,219.42,219.33,11.59672699]
[1734488120015,17.94940521,219.41,219.4,2.2788]
[1734488120216,13.23298157,219.45,219.4,2.2788]
[1734488120416,17.95252535,219.44,219.4,2.2788]
[1734488120611,17.95252535,219.43,219.4,2.2788]
[1734488120912,10.95468157,219.42,219.41,2.2787]
[1734488121113,1.4649,219.46,219.36,8.69672699]
[1734488121114,10.95468157,219.49,219.36,8.69672699]
[1734488121317,17.9546062,219.48,219.39,8.69672699]
[1734488121518,17.9546062,219.47,219.39,11.59672699]
[1734488121716,17.9546062,219.46,219.39,11.59672699]
[1734488121915,10.95468157,219.45,219.39,11.59672699]
[1734488122113,10.95468157,219.44,219.39,11.59672699]
[1734488122315,1.5062,219.5,219.39,11.59672699]
[1734488122816,26.38680815,219.5,219.39,11.59672699]
[1734488123018,24.88060815,219.49,219.39,11.59672699]
[1734488123318,24.88060815,219.48,219.39,11.59672699]
[1734488123519,17.95711631,219.47,219.42,2.2785]
[1734488123815,17.95711631,219.46,219.42,2.2785]
[1734488124017,17.95711631,219.45,219.42,2.2785]
[1734488124320,10.95468157,219.44,219.42,2.2785]
[1734488124509,10.95468157,219.43,219.4,2.2788]
[1734488124715,10.95468157,219.42,219.34,8.69672699]
[1734488124909,1.5062,219.5,219.34,8.69672699]
[1734488124910,10.95468157,219.41,219.34,11.59672699]
[1734488125117,10.95468157,219.4,219.34,11.59672699]
[1734488125418,2.2782,219.46,219.39,2.2788]
[1734488125612,10.96285602,219.49,219.34,11.59672699]
[1734488125817,24.88328146,219.48,219.34,11.59672699]
[1734488126019,5.57288199,219.42,219.31,8.48076084]
[1734488126216,5.57288199,219.42,219.34,5.57288199]
[1734488126722,2.2787,219.41,219.35,2.2793]
[1734488126924,5.57288199,219.42,219.31,5.58076084]
[1734488127120,5.57288199,219.36,219.31,5.58076084]
[1734488127517,5.57288199,219.38,219.31,5.58076084]
[1734488127717,5.57288199,219.38,219.32,2.2796]
[1734488127917,17.96273988,219.38,219.32,2.2796]
[1734488128122,17.96273988,219.38,219.31,5.58076084]
[1734488128123,17.96273988,219.37,219.31,5.58076084]
[1734488128431,17.96273988,219.36,219.33,8.71066223]
[1734488128717,11.61066223,219.47,219.33,8.71066223]
[1734488128922,24.87236744,219.46,219.33,8.71066223]
[1734488129125,19.34489176,219.45,219.33,8.71066223]
[1734488129313,16.19325732,219.44,219.37,2.279]
[1734488129521,10.95751012,219.43,219.33,8.71066223]
[1734488129719,10.95751012,219.42,219.33,8.71066223]
[1734488130018,10.95751012,219.41,219.33,8.71066223]
[1734488130222,2.2782,219.46,219.33,8.71066223]
[1734488130623,2.9,219.47,219.39,2.2788]
[1734488130920,2.2783,219.45,219.39,2.2788]
[1734488131120,27.77898623,219.47,219.37,2.279]
[1734488131318,2.2784,219.44,219.37,2.279]
[1734488131713,13.23917704,219.44,219.37,2.279]
[1734488131919,10.96077704,219.43,219.37,2.279]
[1734488132120,17.95930918,219.42,219.37,2.279]
[1734488132321,10.96077704,219.41,219.38,2.2789]
[1734488132521,10.96077704,219.4,219.33,8.71066223]
[1734488132723,10.96077704,219.39,219.33,8.71066223]
[1734488133023,2.2785,219.43,219.33,8.71066223]
[1734488133222,2.9,219.43,219.31,5.58076084]
[1734488133418,8.71066223,219.41,219.31,5.58076084]
[1734488133816,33.58945529,219.41,219.31,5.58076084]
[1734488134117,24.87879306,219.4,219.31,5.58076084]
[1734488134315,24.87879306,219.39,219.31,5.58076084]
[1734488134519,2.2791,219.37,219.31,7.86036084]
[1734488134728,20.23791197,219.37,219.31,5.58076084]
[1734488135023,17.95881197,219.36,219.31,7.86046084]
[1734488135223,17.95881197,219.35,219.31,7.86046084]
[1734488135423,1.5585,219.4,219.31,5.58076084]
[1734488135424,10.96040731,219.34,219.31,5.58076084]
[1734488135723,10.96040731,219.33,219.31,5.58076084]
[1734488135925,1.5585,219.4,219.31,5.58076084]
[1734488136324,2.2792,219.36,219.31,5.58076084]
[1734488136824,2.2792,219.36,219.26,11.61066223]
[1734488137330,2.2792,219.36,219.26,8.71066223]
[1734488137623,20.21930722,219.36,219.31,5.55909318]
[1734488137830,10.94879504,219.35,219.31,5.55909318]
[1734488138235,2.2791,219.38,219.31,5.55909318]
[1734488139137,9.26725714,219.38,219.31,5.55909318]
[1734488139335,2.2791,219.38,219.31,5.55909318]
[1734488139530,10.9440207,219.38,219.32,8.71066223]